bitfinex-derivatives/quotes_BTCF0:USTF0_20250915
["timestamp","ask_amount","ask_price","bid_price","bid_amount"]
[1757967459403,0.00347244,115540.0,115530.0,1.61123]
[1757967463412,0.00347244,115540.0,115530.0,0.81995]
[1757967463599,0.00347244,115540.0,115530.0,1.61111]
[1757967465407,0.00347244,115540.0,115530.0,0.50995]
[1757967465705,0.00347244,115540.0,115530.0,1.30107]
[1757967465910,0.00347244,115540.0,115530.0,1.55107]
[1757967470009,0.00347244,115540.0,115530.0,0.75995]
[1757967470210,0.00347244,115540.0,115530.0,1.55095]
[1757967471410,0.00347244,115540.0,115530.0,0.49995]
[1757967471609,0.00347244,115540.0,115530.0,1.51095]
[1757967473210,0.00347244,115540.0,115530.0,0.71995]
[1757967473407,0.00347244,115540.0,115530.0,1.51087]
[1757967473912,0.00347244,115540.0,115530.0,0.71995]
[1757967474105,0.00347244,115540.0,115530.0,1.51087]
[1757967474504,0.3333094,115540.0,115530.0,1.51087]
[1757967475411,0.3333094,115540.0,115530.0,0.71995]
[1757967475719,0.3333094,115540.0,115530.0,1.15003]
[1757967476315,0.00347244,115540.0,115530.0,1.15003]
[1757967476613,0.3333094,115540.0,115530.0,1.15003]
[1757967478117,0.00347244,115540.0,115530.0,1.15003]
[1757967478318,0.3333094,115540.0,115530.0,1.15003]
[1757967478614,0.00347244,115540.0,115530.0,1.15003]
[1757967479116,0.00347244,115540.0,115530.0,0.96003]
[1757967485422,0.00347244,115540.0,115530.0,1.32083]
[1757967486625,0.00347244,115540.0,115530.0,1.27083]
[1757967486819,0.00347244,115540.0,115530.0,1.57083]
[1757967489726,0.00347244,115540.0,115530.0,1.21003]
[1757967489926,0.02573997,115540.0,115530.0,1.21003]
[1757967491328,0.35557693,115540.0,115530.0,1.21003]
[1757967491527,0.02573997,115540.0,115530.0,1.21003]
[1757967497834,0.39660007,115540.0,115530.0,1.5808901]
[1757967498132,0.39660007,115540.0,115530.0,0.41915]
[1757967498338,0.39660007,115540.0,115530.0,1.13963]
[1757967499040,0.39660007,115540.0,115530.0,1.5104901]
[1757967499731,0.37433254,115540.0,115530.0,1.5104901]
[1757967502938,0.37433254,115540.0,115530.0,1.5804901]
[1757967505041,0.37433254,115540.0,115530.0,1.9412901]
[1757967505944,0.37433254,115540.0,115530.0,1.7712901]
[1757967509746,0.361,115550.0,115530.0,2.5721502]
[1757967509951,0.39332894,115550.0,115540.0,0.4059101]
[1757967510252,0.39312894,115550.0,115540.0,0.4359101]
[1757967510549,0.3708601,115550.0,115540.0,0.4359101]
[1757967510944,0.3708601,115550.0,115540.0,1.0567101]
[1757967511452,0.3708601,115550.0,115540.0,0.6969101]
[1757967512454,0.3708601,115550.0,115540.0,1.5674101]
[1757967512652,0.3708601,115550.0,115540.0,1.5684101]
[1757967513450,0.3708601,115550.0,115540.0,0.40719]
[1757967513654,0.7318601,115560.0,115550.0,0.03505]
[1757967513856,1.1147223,115560.0,115550.0,0.05505]
[1757967514856,1.4855824,115560.0,115550.0,0.05505]
[1757967517958,2.2759024,115560.0,115550.0,0.05505]
[1757967519057,1.5341822,115560.0,115550.0,0.05505]
[1757967519362,2.2759024,115560.0,115550.0,0.05505]
[1757967520253,1.5341822,115560.0,115550.0,0.05505]
[1757967520457,2.2759024,115560.0,115550.0,0.05505]
[1757967521963,2.2759024,115560.0,115550.0,0.30505]
[1757967522166,1.5341822,115560.0,115550.0,0.30505]
[1757967522365,2.2759024,115560.0,115550.0,0.30505]
[1757967523665,1.5341822,115560.0,115550.0,0.30505]
[1757967523864,2.2759024,115560.0,115550.0,0.30505]
[1757967530962,1.9050423,115560.0,115550.0,0.30505]
[1757967531167,2.2759024,115560.0,115550.0,0.30505]
[1757967534268,1.5341822,115560.0,115550.0,0.30505]
[1757967534569,2.2759024,115560.0,115550.0,0.30505]
[1757967536267,1.9151024,115560.0,115550.0,0.30505]
[1757967538470,1.1733822,115560.0,115550.0,0.30505]
[1757967538672,1.9151024,115560.0,115550.0,0.30505]
[1757967540973,1.915074,115560.0,115550.0,0.30505]
[1757967543776,1.5442139,115560.0,115550.0,0.30505]
[1757967543972,1.915074,115560.0,115550.0,0.30505]
[1757967546474,1.1733538,115560.0,115550.0,0.30505]
[1757967546776,1.915074,115560.0,115550.0,0.30505]
[1757967547278,0.0222338,115560.0,115550.0,1.2467101]
[1757967547470,0.0222338,115560.0,115550.0,1.6958701]
[1757967547668,0.7318601,115570.0,115560.0,0.03616]
[1757967547879,0.75411438,115570.0,115560.0,0.15616]
[1757967548268,0.38325428,115570.0,115560.0,0.15616]
[1757967548467,0.75411438,115570.0,115560.0,0.15616]
[1757967548774,0.75411438,115570.0,115560.0,0.08616]
[1757967549374,0.75511438,115570.0,115560.0,0.08616]
[1757967550182,0.75711438,115570.0,115560.0,0.08616]
[1757967552479,0.38625428,115570.0,115560.0,0.08616]
[1757967552680,0.75711438,115570.0,115560.0,0.08616]
[1757967553574,0.38625428,115570.0,115560.0,0.08616]
[1757967553876,0.75711438,115570.0,115560.0,0.08616]
[1757967554483,0.75711438,115570.0,115560.0,0.24616]
[1757967556481,0.75711438,115570.0,115560.0,0.05616]
[1757967558383,0.75711438,115570.0,115560.0,0.03616]
[1757967558782,0.75711438,115570.0,115560.0,0.28616]
[1757967559876,0.71585088,115570.0,115560.0,0.28616]
[1757967560582,0.71585088,115570.0,115560.0,0.05616]
[1757967562680,0.38625428,115570.0,115560.0,0.05616]
[1757967562878,0.71585088,115570.0,115560.0,0.05616]
[1757967565085,0.38625428,115570.0,115560.0,0.05616]
[1757967565289,0.71585088,115570.0,115560.0,0.05616]
[1757967574593,0.71585088,115570.0,115560.0,0.29616]
[1757967576492,0.38625428,115570.0,115560.0,0.29616]
[1757967576691,0.71585088,115570.0,115560.0,0.29616]
[1757967578902,0.71585088,115570.0,115560.0,0.03616]
[1757967579401,0.38625428,115570.0,115560.0,0.03616]
[1757967579601,0.71585088,115570.0,115560.0,0.03616]
[1757967581703,0.38625428,115570.0,115560.0,0.03616]
[1757967581895,0.71585088,115570.0,115560.0,0.03616]
[1757967582809,0.38625428,115570.0,115560.0,0.03616]
[1757967583098,0.71585088,115570.0,115560.0,0.03616]
[1757967583503,0.38625428,115570.0,115560.0,0.03616]
[1757967583804,0.71585088,115570.0,115560.0,0.03616]
[1757967587805,1.07665088,115570.0,115560.0,0.01391]
[1757967588912,1.07665088,115570.0,115550.0,0.09325]
[1757967589102,1.5036766,115560.0,115550.0,0.09325]
[1757967589409,1.52613088,115560.0,115550.0,0.11438]
[1757967589609,1.52613088,115560.0,115550.0,0.13438]
[1757967589812,1.52613088,115560.0,115550.0,0.11438]
[1757967590105,1.52613088,115560.0,115550.0,0.13438]
[1757967591911,1.19653428,115560.0,115550.0,0.13438]
[1757967592111,1.52613088,115560.0,115550.0,0.13438]
[1757967598709,0.71285088,115560.0,115550.0,0.13438]
[1757967599112,1.52385088,115560.0,115550.0,0.41438]
[1757967600317,1.52353088,115560.0,115550.0,0.41438]
[1757967601117,1.52353088,115560.0,115550.0,0.11438]
[1757967603820,1.52285088,115560.0,115550.0,0.19438]
[1757967605022,1.52285088,115560.0,115550.0,0.11438]
[1757967605217,0.71285088,115560.0,115550.0,0.11438]
[1757967605423,1.52229088,115560.0,115550.0,0.11438]
[1757967607122,1.52229088,115560.0,115550.0,0.03425]
[1757967607324,1.85188748,115560.0,115550.0,0.03425]
[1757967607514,1.85188748,115560.0,115550.0,0.01302]
[1757967607920,1.85188748,115560.0,115550.0,0.03302]
[1757967609929,1.85188748,115560.0,115550.0,0.11315]
[1757967610326,1.85188748,115560.0,115550.0,0.13535]
[1757967610628,1.85188748,115560.0,115550.0,0.11315]
[1757967612931,1.04244748,115560.0,115550.0,0.11315]
[1757967613134,1.85008748,115560.0,115550.0,0.13535]
[1757967613435,1.52049088,115560.0,115550.0,0.13535]
[1757967620431,1.52049088,115560.0,115550.0,0.11315]
[1757967620735,1.85008748,115560.0,115550.0,0.11315]
[1757967620926,1.52049088,115560.0,115550.0,0.11315]
[1757967621335,1.52049088,115560.0,115550.0,0.13535]
[1757967621738,1.93265646,115560.0,115550.0,0.13535]
[1757967625239,1.93265646,115560.0,115550.0,0.11315]
[1757967625638,1.93235473,115560.0,115550.0,0.11315]
[1757967625839,1.93235473,115560.0,115550.0,0.13535]
[1757967626943,1.93235473,115560.0,115550.0,0.11535]
[1757967628941,1.93235473,115560.0,115550.0,0.13535]
[1757967632246,1.93235473,115560.0,115550.0,0.11315]
[1757967634749,0.38295255,115560.0,115550.0,0.13453]
[1757967634940,1.92819473,115560.0,115550.0,0.13453]
[1757967637644,1.92819473,115560.0,115550.0,0.11315]
[1757967639345,1.92819473,115560.0,115550.0,0.09315]
[1757967645448,1.92819473,115560.0,115550.0,0.11315]
[1757967645655,1.92819473,115560.0,115550.0,0.09315]
[1757967646253,1.92819473,115560.0,115550.0,0.11453]
[1757967646455,1.92819473,115560.0,115550.0,0.09315]
[1757967649658,1.92819473,115560.0,115550.0,0.11315]
[1757967650264,1.92819473,115560.0,115550.0,0.09315]
[1757967650967,2.54907582,115560.0,115550.0,0.08013]
[1757967651263,2.5957763,115560.0,115520.0,0.03414]
[1757967651462,1.10256218,115530.0,115520.0,0.36414]
[1757967651659,1.92603473,115530.0,115520.0,0.36414]
[1757967652456,1.92603473,115530.0,115520.0,0.03714]
[1757967652660,1.92603473,115530.0,115520.0,0.05714]
[1757967653166,1.92603473,115530.0,115520.0,0.03576]
[1757967653767,1.99628446,115530.0,115520.0,0.03976]
[1757967653967,1.99628446,115530.0,115520.0,0.03276]
[1757967654163,1.99628446,115530.0,115520.0,0.03676]
[1757967654769,1.99628446,115530.0,115520.0,0.03376]
[1757967654962,1.99628446,115530.0,115520.0,0.03476]
[1757967657772,1.99628446,115530.0,115520.0,0.05614]
[1757967657972,1.19496446,115530.0,115520.0,0.05614]
[1757967658173,1.99548446,115530.0,115520.0,0.05614]
[1757967659176,1.99548446,115530.0,115520.0,0.03476]
[1757967659870,1.97333191,115530.0,115520.0,0.03476]
[1757967660472,1.97333191,115530.0,115520.0,0.05747]
[1757967661470,1.99585707,115530.0,115520.0,0.002]
[1757967661677,1.99585863,115530.0,115520.0,0.002]
[1757967662068,1.99537863,115530.0,115520.0,0.002]
[1757967668065,2.36625972,115530.0,115520.0,0.002]
[1757967668373,1.99537863,115530.0,115520.0,0.002]
[1757967668573,2.36625972,115530.0,115520.0,0.002]
[1757967668774,1.99537863,115530.0,115520.0,0.002]
[1757967669172,1.99537863,115530.0,115520.0,0.001]
[1757967669369,1.99537863,115530.0,115500.0,0.03595]
[1757967669571,0.73168109,115510.0,115500.0,0.31595]
[1757967669876,1.53100109,115510.0,115500.0,0.31595]
[1757967670972,1.53958281,115510.0,115500.0,0.31595]
[1757967671978,2.5539155,115510.0,115490.0,0.09351]
[1757967672172,1.10256218,115500.0,115490.0,0.11351]
[1757967672474,1.92409269,115500.0,115490.0,0.03324]
[1757967673273,1.92409269,115500.0,115490.0,0.03524]
[1757967673778,1.92409269,115500.0,115490.0,0.024]
[1757967674274,1.92409269,115500.0,115460.0,0.03577]
[1757967674275,2.54497378,115500.0,115460.0,0.03577]
[1757967674477,1.46336218,115470.0,115460.0,0.03577]
[1757967674676,2.28473269,115470.0,115460.0,0.03577]
[1757967675067,1.1150516,115470.0,115460.0,0.03577]
[1757967675271,1.1150516,115470.0,115460.0,0.61577]
[1757967675272,0.74417051,115470.0,115460.0,0.61577]
[1757967675476,0.74417051,115470.0,115460.0,0.34977]
[1757967675477,0.7542516,115470.0,115460.0,0.34977]
[1757967675877,0.73168109,115470.0,115460.0,0.34977]
[1757967676071,0.73168109,115470.0,115460.0,0.95065109]
[1757967676271,0.3608,115480.0,115470.0,0.03577]
[1757967676477,0.73168109,115480.0,115470.0,0.06577]
[1757967676672,0.7542276,115480.0,115470.0,0.06577]
[1757967677180,1.12510869,115480.0,115470.0,0.05577]
[1757967677675,0.7552276,115480.0,115470.0,0.05877]
[1757967677974,1.12610869,115480.0,115470.0,0.03877]
[1757967678377,1.37610869,115480.0,115470.0,0.003]
[1757967678581,1.37610869,115480.0,115440.0,0.09327]
[1757967678582,0.0095,115460.0,115440.0,0.09327]
[1757967678772,2.28531218,115450.0,115440.0,0.11598]
[1757967678976,2.30485869,115450.0,115440.0,0.11598]
[1757967679476,2.30485869,115450.0,115440.0,0.08021]
[1757967679477,2.31338237,115450.0,115440.0,0.08021]
[1757967679981,2.38372233,115450.0,115440.0,0.08521]
[1757967680179,2.38472233,115450.0,115440.0,0.08821]
[1757967680778,2.38372233,115450.0,115440.0,0.08621]
[1757967681681,2.38372233,115450.0,115440.0,0.08121]
[1757967681880,2.38372233,115450.0,115440.0,0.08221]
[1757967682076,1.58800233,115450.0,115440.0,0.13798]
[1757967682280,2.38652233,115450.0,115440.0,0.13798]
[1757967683977,1.9750724,115450.0,115440.0,0.13798]
[1757967684382,1.9750724,115450.0,115440.0,0.11798]
[1757967688985,1.1765524,115450.0,115440.0,0.11798]
[1757967689291,1.1765524,115450.0,115440.0,0.14798]
[1757967689486,1.64388015,115450.0,115440.0,0.14798]
[1757967689688,1.95164589,115450.0,115440.0,0.14798]
[1757967689891,1.1764751,115450.0,115440.0,0.16798]
[1757967690090,1.9740751,115450.0,115440.0,0.16798]
[1757967690391,1.95160589,115450.0,115440.0,0.16798]
[1757967690790,1.95160589,115450.0,115440.0,0.13798]
[1757967691288,1.97476227,115450.0,115440.0,0.13798]
[1757967691488,1.97476227,115450.0,115440.0,0.38798]
[1757967693392,1.17648227,115450.0,115440.0,0.38798]
[1757967693691,1.97476227,115450.0,115440.0,0.38798]
[1757967698590,1.97372227,115450.0,115440.0,0.38798]
[1757967699398,1.97372227,115450.0,115440.0,0.13798]
[1757967705504,1.97344227,115450.0,115440.0,0.13798]
[1757967706704,1.17648227,115450.0,115440.0,0.13798]
[1757967706900,1.97344227,115450.0,115440.0,0.13798]
[1757967710998,1.97344227,115450.0,115440.0,0.10221]
[1757967711200,0.03129,115440.0,115430.0,0.0001]
[1757967711394,1.09941498,115440.0,115420.0,0.0001]
[1757967711593,1.51121225,115430.0,115420.0,0.0001]
[1757967711902,1.20337638,115430.0,115420.0,0.05542]
[1757967712103,1.53368863,115430.0,115420.0,0.05542]
[1757967712596,1.53368863,115430.0,115420.0,0.05842]
[1757967713207,1.53068863,115430.0,115420.0,0.05842]
[1757967713499,1.53068863,115430.0,115420.0,0.05542]
[1757967713798,1.53168863,115430.0,115420.0,0.05742]
[1757967716906,1.53168863,115430.0,115420.0,0.05811]
[1757967719608,2.11200088,115430.0,115410.0,0.0001]
[1757967719812,0.02308,115400.0,115390.0,0.05909]
[1757967720113,1.53381658,115400.0,115390.0,0.0362]
[1757967720615,1.89461658,115400.0,115390.0,0.1562]
[1757967720810,1.89461658,115400.0,115390.0,0.0362]
[1757967721012,2.22492883,115400.0,115390.0,0.0362]
[1757967721208,2.23403883,115400.0,115390.0,0.004]
[1757967721607,2.24254625,115400.0,115390.0,0.004]
[1757967722408,0.02367,115380.0,115360.0,0.03576]
[1757967722608,2.2104345,115370.0,115360.0,0.04286]
[1757967722802,1.90274658,115370.0,115360.0,0.02286]
[1757967723107,1.89109658,115370.0,115360.0,0.06611]
[1757967723307,1.56078433,115370.0,115360.0,0.06611]
[1757967723506,1.09209658,115370.0,115360.0,0.06611]
[1757967723708,1.88913658,115370.0,115360.0,0.06611]
[1757967724114,1.09209658,115370.0,115360.0,0.04611]
[1757967724311,0.76278433,115370.0,115360.0,0.02625]
[1757967724615,1.95906116,115370.0,115360.0,0.02625]
[1757967724812,1.95906116,115370.0,115360.0,0.02825]
[1757967725114,1.16198116,115370.0,115360.0,0.02825]
[1757967725314,1.95910116,115370.0,115360.0,0.02825]
[1757967726118,1.95910116,115370.0,115360.0,0.04825]
[1757967726809,1.95910116,115370.0,115360.0,0.02825]
[1757967727412,1.16198116,115370.0,115360.0,0.04825]
[1757967727606,1.95914116,115370.0,115360.0,0.04825]
[1757967728017,1.16198116,115370.0,115360.0,0.04825]
[1757967728217,1.95914116,115370.0,115360.0,0.04825]
[1757967728420,1.16198116,115370.0,115360.0,0.04825]
[1757967728622,1.95918116,115370.0,115360.0,0.04825]
[1757967729122,1.93655683,115370.0,115360.0,0.07825]
[1757967729323,1.13935683,115370.0,115360.0,0.07825]
[1757967729521,1.93659683,115370.0,115360.0,0.07825]
[1757967730519,1.13935683,115370.0,115360.0,0.07825]
[1757967730724,1.93659683,115370.0,115360.0,0.07825]
[1757967733520,1.93659683,115370.0,115360.0,0.02825]
[1757967735322,1.9636607,115370.0,115360.0,0.005]
[1757967735522,2.29397295,115370.0,115360.0,0.005]
[1757967736422,1.9636607,115370.0,115360.0,0.005]
[1757967736728,1.9637407,115370.0,115360.0,0.005]
[1757967742531,1.1664207,115370.0,115360.0,0.005]
[1757967742732,1.9637407,115370.0,115360.0,0.005]
[1757967745728,2.00555863,115370.0,115360.0,0.005]
[1757967745934,2.37768881,115370.0,115360.0,0.005]
[1757967746133,2.37768881,115370.0,115360.0,0.02755]
[1757967746333,2.00555863,115370.0,115360.0,0.005]
[1757967747232,1.20823863,115370.0,115360.0,0.005]
[1757967747434,2.00555863,115370.0,115360.0,0.02755]
[1757967748234,2.05225911,115370.0,115360.0,0.02755]
[1757967748534,2.05525911,115370.0,115360.0,0.001]
[1757967748735,2.05625911,115370.0,115360.0,0.001]
[1757967748936,2.42838929,115370.0,115360.0,0.001]
[1757967751442,2.38168881,115370.0,115360.0,0.001]
[1757967751939,2.38164881,115370.0,115360.0,0.02355]
[1757967752342,2.44406907,115370.0,115360.0,0.02355]
[1757967752544,1.64678907,115370.0,115360.0,0.02355]
[1757967752736,2.44406907,115370.0,115360.0,0.02355]
[1757967753640,2.44406907,115370.0,115360.0,0.001]
[1757967754340,2.07193889,115370.0,115360.0,0.001]
[1757967754942,2.07193889,115370.0,115360.0,0.02355]
[1757967755239,1.27022889,115370.0,115360.0,0.03623]
[1757967755541,1.27022889,115370.0,115360.0,0.05623]
[1757967755542,2.05177047,115370.0,115360.0,0.05623]
[1757967757042,1.25453047,115370.0,115360.0,0.03623]
[1757967757243,2.05177047,115370.0,115360.0,0.03623]
[1757967758244,1.25453047,115370.0,115360.0,0.03623]
[1757967758445,2.05177047,115370.0,115360.0,0.03623]
[1757967759144,2.05177047,115370.0,115360.0,0.05623]
[1757967760752,2.05177047,115370.0,115360.0,0.03623]
[1757967763445,1.25453047,115370.0,115360.0,0.03623]
[1757967763850,2.05169047,115370.0,115360.0,0.03623]
[1757967765248,1.25453047,115370.0,115360.0,0.03623]
[1757967765450,2.05165047,115370.0,115360.0,0.03623]
[1757967766751,2.05165047,115370.0,115360.0,0.05623]
[1757967769647,0.88240029,115370.0,115360.0,0.26654165]
[1757967769852,0.11407845,115370.0,115360.0,0.96867183]
[1757967770041,0.11407845,115370.0,115360.0,0.67867183]
[1757967770042,0.48620863,115370.0,115360.0,0.67867183]
[1757967770244,0.48620863,115370.0,115360.0,0.53654165]
[1757967771452,1.28324863,115370.0,115360.0,0.53654165]
[1757967771648,1.28324863,115370.0,115360.0,0.35654165]
[1757967771848,1.28324863,115370.0,115360.0,0.50654165]
[1757967772342,1.64404863,115370.0,115360.0,0.50654165]
[1757967772753,1.28324863,115370.0,115360.0,0.50654165]
[1757967773154,1.28324863,115370.0,115360.0,0.33654165]
[1757967773351,1.28324863,115370.0,115360.0,0.48654165]
[1757967773553,1.28324863,115370.0,115360.0,0.45654165]
[1757967776157,1.26061476,115370.0,115360.0,0.45654165]
[1757967776356,1.26049476,115370.0,115360.0,0.45654165]
[1757967777858,1.26049476,115370.0,115360.0,0.58654165]
[1757967780255,0.46357476,115370.0,115360.0,0.58654165]
[1757967780457,0.46357476,115370.0,115360.0,0.50654165]
[1757967783361,0.46357476,115370.0,115360.0,0.33654165]
[1757967784763,0.46357476,115370.0,115360.0,0.30654165]
[1757967785066,0.46357476,115370.0,115360.0,0.32654165]
[1757967785760,0.46357476,115370.0,115360.0,0.44867183]
[1757967785961,0.44601476,115370.0,115360.0,0.62867183]
[1757967786163,0.44601476,115370.0,115360.0,0.87867183]
[1757967787364,0.44601476,115370.0,115360.0,1.23947183]
[1757967787865,0.37713018,115370.0,115360.0,1.23947183]
[1757967788066,0.37713018,115370.0,115360.0,2.03615183]
[1757967790363,0.005,115370.0,115360.0,2.03615183]
[1757967790563,0.37713018,115370.0,115360.0,2.03615183]
[1757967791065,0.005,115370.0,115360.0,2.03615183]
[1757967791266,0.37713018,115370.0,115360.0,2.03615183]
[1757967793869,0.005,115370.0,115360.0,2.03615183]
[1757967794267,0.37713018,115370.0,115360.0,2.03615183]
[1757967798769,0.37713018,115370.0,115360.0,1.23947183]
[1757967799076,0.37713018,115370.0,115360.0,2.03595183]
[1757967803985,0.37713018,115370.0,115360.0,1.78595183]
[1757967806089,0.005,115370.0,115360.0,2.01595183]
[1757967806286,0.005,115370.0,115360.0,2.46384146]
[1757967806487,0.005,115370.0,115360.0,2.38595183]
[1757967806789,0.39398018,115390.0,115380.0,0.03709]
[1757967807089,0.39398018,115390.0,115380.0,0.72922018]
[1757967807290,0.39398018,115390.0,115380.0,1.09002018]
[1757967807990,0.36095338,115400.0,115390.0,0.03709]
[1757967808196,0.36095338,115400.0,115390.0,0.08709]
[1757967809192,0.36895338,115400.0,115390.0,0.08809]
[1757967809588,0.36895338,115400.0,115390.0,0.35809]
[1757967809784,0.36795338,115400.0,115390.0,0.35809]
[1757967810097,0.36695338,115400.0,115390.0,0.35809]
[1757967810282,0.36395338,115400.0,115390.0,0.35809]
[1757967810485,0.43318043,115400.0,115390.0,0.35809]
[1757967811689,0.43218043,115400.0,115390.0,0.35809]
[1757967812293,0.43218043,115400.0,115390.0,0.06809]
[1757967812593,0.43218043,115400.0,115390.0,0.22809]
[1757967814293,0.41033043,115400.0,115390.0,0.24834408]
[1757967814496,0.07981529,115400.0,115390.0,0.24834408]
[1757967814794,0.07122705,115400.0,115390.0,0.24834408]
[1757967816895,0.40174219,115400.0,115390.0,0.24834408]
[1757967818098,0.07122705,115400.0,115390.0,0.24834408]
[1757967818293,0.09307705,115400.0,115390.0,0.24834408]
[1757967818494,0.42359219,115400.0,115390.0,0.24834408]
[1757967819400,0.09307705,115400.0,115390.0,0.24834408]
[1757967820789,0.42359219,115400.0,115390.0,0.24834408]
[1757967820994,0.09307705,115400.0,115390.0,0.24834408]
[1757967821194,0.42359219,115400.0,115390.0,0.21834408]
[1757967824304,0.42359219,115400.0,115390.0,0.37834408]
[1757967825296,0.42359219,115400.0,115390.0,0.24834408]
[1757967827401,0.09307705,115400.0,115390.0,0.24834408]
[1757967827602,0.40174219,115400.0,115390.0,0.60914408]
[1757967828097,0.42359219,115400.0,115390.0,0.60914408]
[1757967828798,0.02385,115400.0,115390.0,0.93965922]
[1757967828998,0.02385,115400.0,115390.0,0.60914408]
[1757967830305,0.002,115400.0,115390.0,0.60914408]
[1757967832808,0.002,115400.0,115390.0,1.18965922]
[1757967834907,0.002,115400.0,115390.0,1.20965922]
[1757967835107,0.002,115400.0,115390.0,1.18965922]
[1757967837003,0.002,115400.0,115390.0,1.20965922]
[1757967837208,0.002,115400.0,115390.0,1.18965922]
[1757967837410,0.002,115400.0,115390.0,1.25738132]
[1757967843408,0.002,115400.0,115390.0,0.92686618]
[1757967843712,0.002,115400.0,115390.0,1.25738132]
[1757967845015,0.002,115400.0,115390.0,1.83738132]
[1757967847112,0.35153514,115420.0,115410.0,0.0344]
[1757967847311,0.35153514,115420.0,115410.0,1.34044]
[1757967848616,0.35353514,115420.0,115410.0,1.34044]
[1757967849810,0.35153514,115420.0,115410.0,1.34044]
[1757967850016,0.35653514,115420.0,115410.0,1.34144]
[1757967850214,0.35653514,115420.0,115410.0,1.35019956]
[1757967850514,0.35353514,115420.0,115410.0,1.35019956]
[1757967850917,0.02302,115420.0,115410.0,1.35019956]
[1757967852414,0.002,115420.0,115410.0,1.35019956]
[1757967852616,0.002,115420.0,115410.0,1.51019956]
[1757967853416,0.002,115420.0,115410.0,2.44085631]
[1757967856919,0.002,115420.0,115410.0,2.80165631]
[1757967862625,0.002,115420.0,115410.0,2.82165631]
[1757967863427,0.002,115420.0,115410.0,2.80121631]
[1757967867931,0.002,115420.0,115410.0,2.81121631]
[1757967869832,0.002,115420.0,115410.0,2.85227099]
[1757967870626,0.002,115420.0,115410.0,2.84227099]
[1757967870827,0.002,115420.0,115410.0,3.13227099]
[1757967874026,0.37156982,115430.0,115410.0,3.50384081]
[1757967874230,0.39345982,115440.0,115430.0,0.03551]
[1757967874429,0.39345982,115440.0,115430.0,1.19079]
[1757967874729,0.39345982,115440.0,115430.0,1.51079]
[1757967874925,0.39345982,115440.0,115430.0,1.19079]
[1757967875126,0.39345982,115440.0,115430.0,1.34079]
[1757967875734,0.39745982,115440.0,115430.0,1.34179]
[1757967876233,0.39345982,115440.0,115430.0,1.34079]
[1757967876434,0.39545982,115440.0,115430.0,1.34179]
[1757967876629,0.39545982,115440.0,115430.0,1.19179]
[1757967876832,0.39545982,115440.0,115430.0,1.53179]
[1757967877634,0.41803113,115440.0,115430.0,1.53179]
[1757967878031,0.41803113,115440.0,115430.0,1.19179]
[1757967878232,0.41803113,115440.0,115430.0,1.35179]
[1757967878634,0.39614113,115440.0,115430.0,1.35179]
[1757967878833,0.37356982,115440.0,115430.0,1.35179]
[1757967879437,0.37356982,115440.0,115430.0,1.72335982]
[1757967880739,0.37356982,115440.0,115430.0,1.35179]
[1757967888246,0.39545982,115440.0,115430.0,1.35143]
[1757967888948,0.76702964,115440.0,115430.0,1.35143]
[1757967889749,0.39545982,115440.0,115430.0,1.35143]
[1757967896054,0.39545982,115440.0,115430.0,1.72299982]
[1757967897156,0.39545982,115440.0,115430.0,1.35143]
[1757967897952,0.39545982,115440.0,115430.0,1.72299982]
[1757967898849,0.39545982,115440.0,115430.0,0.55731]
[1757967899055,0.76702964,115440.0,115430.0,0.39731]
[1757967899353,0.7896361,115440.0,115430.0,1.19111]
[1757967899555,0.7896361,115440.0,115430.0,1.47111]
[1757967899751,0.7896361,115440.0,115430.0,1.19111]
[1757967899956,0.7896361,115440.0,115430.0,1.21111]
[1757967900553,0.04649646,115440.0,115430.0,1.21111]
[1757967900854,0.7896361,115440.0,115430.0,1.21111]
[1757967901155,0.7896361,115440.0,115430.0,1.19111]
[1757967901358,0.7896361,115440.0,115430.0,1.51111]
[1757967906463,0.04649646,115440.0,115430.0,1.51111]
[1757967907051,0.41806628,115440.0,115430.0,1.51111]
[1757967907456,0.04649646,115440.0,115430.0,1.51111]
[1757967907662,0.41806628,115440.0,115430.0,1.51111]
[1757967908259,0.41806628,115440.0,115430.0,1.27111]
[1757967908466,0.41806628,115440.0,115430.0,1.49111]
[1757967908656,0.04649646,115440.0,115430.0,1.49111]
[1757967908958,0.41806628,115440.0,115430.0,1.49111]
[1757967909465,0.41806628,115440.0,115430.0,1.26111]
[1757967910260,0.41806628,115440.0,115430.0,1.49111]
[1757967910562,0.41806628,115440.0,115430.0,1.29111]
[1757967911265,0.04649646,115440.0,115430.0,1.29111]
[1757967911466,0.41806628,115440.0,115430.0,1.29111]
[1757967914266,0.39545982,115440.0,115430.0,1.29111]
[1757967914973,0.41805485,115440.0,115430.0,1.29111]
[1757967919570,0.39545982,115440.0,115430.0,1.29111]
[1757967919972,0.41805081,115440.0,115430.0,1.29111]
[1757967920870,0.41805081,115440.0,115430.0,1.47111]
[1757967922270,0.41805081,115440.0,115430.0,1.24111]
[1757967922571,0.39545982,115440.0,115430.0,1.24111]
[1757967923471,0.39545982,115440.0,115430.0,1.19111]
[1757967923671,0.76702964,115440.0,115430.0,0.46731]
[1757967923865,0.76702964,115440.0,115430.0,1.26051]
[1757967924071,0.76702964,115440.0,115430.0,0.46731]
[1757967924271,0.76702964,115440.0,115430.0,1.26051]
[1757967924671,0.78961539,115440.0,115430.0,1.49051]
[1757967927575,0.78961539,115440.0,115430.0,0.08651]
[1757967927772,0.78961539,115440.0,115430.0,0.05651]
[1757967927971,0.78961539,115440.0,115430.0,0.84963]
[1757967928575,0.78961539,115440.0,115430.0,1.21043]
[1757967929878,0.37673613,115440.0,115430.0,1.21043]
[1757967930274,0.37673613,115440.0,115430.0,1.28146]
[1757967934486,0.35415038,115440.0,115430.0,1.28146]
[1757967934783,0.37672993,115440.0,115430.0,1.51146]
[1757967938683,0.37672993,115440.0,115430.0,0.46834]
[1757967938882,0.37672993,115440.0,115430.0,1.56122]
[1757967942688,0.37672993,115440.0,115430.0,0.76834]
[1757967942887,0.37672993,115440.0,115430.0,0.30203]
[1757967942888,2.11502031,115440.0,115430.0,0.30203]
[1757967943094,2.11502031,115440.0,115430.0,0.07203]
[1757967943290,2.11498031,115440.0,115430.0,0.07203]
[1757967943485,1.32222031,115440.0,115430.0,0.07203]
[1757967943784,2.11498031,115440.0,115430.0,0.07203]